Cogmind - Beta 15 @@@ ROGUE MODE // 2025.08.25 @ 23:52:43 Player: Reflectatory Result: Destroyed by K0-S39(R) with Subdweller Machine Gun Performance ------------- Evolutions (0) 0 Regions Visited (2) 400 Robots Destroyed (4) 20 Value Destroyed (70) 70 Prototype IDs (0) 0 Alien Tech Used (0) 0 Bonus (0) 0 TOTAL SCORE: 490 Bonus ------- None Cogmind --------- Core Integrity 0/250 Matter 300/300 Energy 124/125 System Corruption 0% Temperature Cool (2) Movement Flying (37) Location -10/Subcaves Parts ------- > --- POWER (1) -------- Light Ion Engine > --- PROPULSION (2) --- Flight Unit Flight Unit > --- UTILITY (2) ------ Signal Interpreter Hacking Suite > --- WEAPON (2) ------- (None) > --- INVENTORY (5) ---- Light Ion Engine Flight Unit Flight Unit Flight Unit Subdweller Optics Peak State ------------ > --- POWER ------------ Ion Engine > --- PROPULSION ------- Flight Unit Flight Unit > --- UTILITY ---------- Signal Interpreter Hacking Suite > --- WEAPON ----------- (None) > --- INVENTORY -------- Light Ion Engine Flight Unit Flight Unit Flight Unit [Rating: 7] Favorites ----------- Power Ion Engine Engine Ion Engine Propulsion Flight Unit Leg Aluminum Leg Flight Unit Flight Unit Utility Signal Interpreter Processor Signal Interpreter Hackware Hacking Suite Weapon Assault Rifle Energy Gun EM Pulse Gun Ballistic Gun Assault Rifle Special Melee Weapon Datajack Build | -11 -10 -10 ------- Run | Yrd Mat Sub Slots Evolved . | . . . Power . | . . . Propulsion . | . . . Utility . | . . . Weapon . | . . . Parts Attached 14 | 5 6 3 Power 2 | 1 . 1 Engine 2 | 1 . 1 Core . | . . . Reactor . | . . . Propulsion 6 | 2 3 1 Treads . | . . . Leg 2 | 2 . . Wheel . | . . . Hover . | . . . Flight 4 | . 3 1 Utility 2 | . 1 1 Device . | . . . Storage . | . . . Processor 1 | . 1 . Hackware 1 | . . 1 Protection . | . . . Artifact . | . . . Weapon 4 | 2 2 . Energy Gun 1 | 1 . . Energy Cannon . | . . . Ballistic Gun 2 | 1 1 . Ballistic Cannon . | . . . Launcher . | . . . Special Weapon . | . . . Impact Weapon . | . . . Slashing Weapon . | . . . Piercing Weapon . | . . . Special Melee Weapon 1 | . 1 . Unidentified Prototypes . | . . . Parts Lost 4 | . 1 3 Power . | . . . Propulsion 1 | . . 1 Utility . | . . . Weapon 3 | . 1 2 Highest Loss Streak 3 | . 1 3 To Critical Strikes . | . . . Average Backups 3 | . 3 4 Power 1 | . 1 1 Propulsion 2 | . . 3 Utility . | . . . Weapon . | . . . Tool/Special . | . . . Unused Backups 6 | . 1 5 Power 2 | . 1 1 Propulsion 3 | . . 3 Utility 1 | . . 1 Weapon . | . . . Tool/Special . | . . . Average Slot Usage (%) 71 | . 69 74 Engine 14 | . 14 14 Leg 8 | . 17 . Flight 19 | . 10 27 Processor 9 | . 4 14 Hackware 5 | . . 9 Energy Gun 3 | . 8 . Ballistic Gun 7 | . 11 4 Special Melee Weapon 2 | . 2 3 Peak Build Rating 7 | 5 6 7 Average Rating 5 | 3 4 6 On Entrance 3 | . 5 6 Naked Turns . | . . . Heaviest Build 9 | 9 9 7 Greatest Support 20 | 20 20 8 Greatest Overweight (x) 1 | . 1 . Average Overweight (x) . | . . . Largest Inventory Capacity 5 | 5 5 5 Average Capacity 5 | 5 5 5 Most Carried 5 | 2 5 5 Average Carried 4 | . 3 4 Final Capacity 5 | 5 5 5 Final Carried 5 | 2 5 5 Class Distribution -------------------- 84% | Mutant 15% | Scavenger-Mutant Dominant Class ---------------- Mutant | -10/Materials Mutant | -10/Subcaves Resources | -11 -10 -10 ----------- Run | Yrd Mat Sub Matter Collected 369 | 170 142 57 Remotely . | . . . Salvage Created 78 | . 41 37 Parts 9 | . 7 2 Haulers Intercepted . | . . . Recyclers Shooed . | . . . Parts Field Recycled . | . . . Retrieved Matter . | . . . Parts Self-Destructed . | . . . Prevented . | . . . Kills | -11 -10 -10 ------- Run | Yrd Mat Sub Combat Hostiles Destroyed 4 | . 3 1 Guns 4 | . 3 1 Classes Destroyed 2 | . 1 1 Swarmer 3 | . 3 . Subdweller 1 | . . 1 Best Kill Streak 2 | . 2 1 Combat Bots Only 2 | . 2 1 Max Kills in Single Turn 1 | . 1 1 Gunslinging . | . . . Exploded . | . . . Melee . | . . . Uniques/NPCs Destroyed . | . . . Combat | -11 -10 -10 -------- Run | Yrd Mat Sub Hostile Shots Fired 77 | . 53 24 Missed 30 | . 22 8 Hits 47 | . 31 16 Projectile 47 | . 31 16 Critical Strikes 1 | . . 1 Damage Taken 625 | . 261 364 Core 258 | . 47 211 Absorbed by Shields . | . . . Core Remaining (%) 100 | 100 . . Volleys Fired 21 | . 7 14 Largest 2 | . 2 1 Hottest 60 | . 60 20 Shots Fired 23 | . 9 14 Gun 23 | . 9 14 Cannon . | . . . Launcher . | . . . Special . | . . . Kinetic 21 | . 7 14 Thermal . | . . . Explosive . | . . . Electromagnetic 2 | . 2 . Robot Hit Streak 20 | . 6 20 Robot Miss Streak 1 | . 1 . Penetration Max . | . . . Secondary Targets . | . . . Shots Hit Robots 20 | . 6 14 Core Hits 8 | . 3 5 Critical Kills . | . . . Critical Parts Destroyed 1 | . 1 . Critical Strikes 1 | . 1 . Destroy 1 | . 1 . Melee Attacks . | . . . Impact . | . . . Slashing . | . . . Piercing . | . . . Sneak Attacks . | . . . Combat Hostiles . | . . . Follow-up Attacks . | . . . Damage Inflicted 170 | . 64 106 Guns 170 | . 64 106 Cannons . | . . . Explosions . | . . . Melee . | . . . Ramming . | . . . Kinetic 170 | . 64 106 Thermal . | . . . Explosive . | . . . Electromagnetic . | . . . Impact . | . . . Slashing . | . . . Piercing . | . . . Highest Corruption . | . . . Average Corruption . | . . . Corruption Purged . | . . . Corruption Blocked . | . . . Overload Shots . | . . . Overflow Damage . | . . . Projectiles . | . . . Explosions . | . . . Melee . | . . . Knockbacks . | . . . Impact . | . . . Kinetic . | . . . Secondary . | . . . Self-Inflicted Damage . | . . . Shots . | . . . Rammed . | . . . Targets Rammed . | . . . Kicked . | . . . Crushed . | . . . Highest Temperature 246 | . 2 246 Average Temperature 106 | . 2 137 Received Heat Transfer 414 | . 36 378 Siege Activations . | . . . Martial Activations . | . . . Shielding Activations . | . . . Robots Disrupted . | . . . Combat Hostiles . | . . . Robots Corrupted . | . . . Combat Hostiles . | . . . Parts Fried . | . . . Impact Corruptions . | . . . Robots Melted . | . . . Combat Hostiles . | . . . Parts Melted . | . . . Heat Transferred . | . . . Parts Sabotaged . | . . . Parts Stolen . | . . . Parts Stripped . | . . . Power Chain Reactions . | . . . Alert | -11 -10 -10 ------- Run | Yrd Mat Sub Maximum Alert Level . | . . . Low Security (%) 100 | 100 100 . Level 1 . | . . . Level 2 . | . . . Level 3 . | . . . Level 4 . | . . . Level 5 . | . . . High Security . | . . . Max Security . | . . . Peak Influence 91 | . 91 . Initial . | . . . Average 27 | . 32 . Influence Increases 181 | . 181 . Destroy 0b10 Robot/C 60 | . 60 . Destroy Leader 10 | . 10 . Successful Hack 21 | . 21 . Partial Spotted 15 | . 15 . Lose Combat Pursuer 75 | . 75 . Influence Decreases 181 | . 110 71 Entered New Map 35 | . . 35 Time Decay 130 | . 100 30 Lost Part 10 | . 10 . Lost Ally 6 | . . 6 Squads Dispatched . | . . . Investigation . | . . . Extermination . | . . . Reinforcement . | . . . Assault . | . . . Garrison . | . . . Intercept . | . . . Searches Triggered . | . . . Construction Impeded . | . . . Haulers Reinforced . | . . . Active Scanning Responses . | . . . Cargo Convoy Interrupts . | . . . Stealth | -11 -10 -10 --------- Run | Yrd Mat Sub Distress Signals 1 | . 1 . Communications Jammed . | . . . Distress Signals . | . . . Times Spotted 25 | . 13 12 Peak Tracking Total 5 | . 5 5 Tactical Retreats 4 | . 2 2 Traps | -11 -10 -10 ------- Run | Yrd Mat Sub Traps Triggered . | . . . Indirectly . | . . . Trap Hack Attempts . | . . . Triggered . | . . . Disarmed . | . . . Reprogrammed . | . . . Reused . | . . . Traps Extracted . | . . . Installed . | . . . Triggered . | . . . Machines | -11 -10 -10 ---------- Run | Yrd Mat Sub Machines Disabled . | . . . Max in Single Turn . | . . . Machines Repaired . | . . . Machines Dismantled . | . . . Machines Sabotaged . | . . . Overloaded Fab Kills . | . . . Hacking | -11 -10 -10 --------- Run | Yrd Mat Sub Machines Accessed 5 | . 5 . Terminals 4 | . 4 . Fabricators . | . . . Repair Stations 1 | . 1 . Recycling Units . | . . . Scanalyzers . | . . . Garrison Access . | . . . Total Hacks 10 | . 10 . Successful 6 | . 6 . Failed 4 | . 4 . Catastrophic 1 | . 1 . Database Lockouts . | . . . Manual 10 | . 10 . Terminals 9 | . 9 . Fabricators . | . . . Repair Stations 1 | . 1 . Recycling Units . | . . . Scanalyzers . | . . . Garrison Access . | . . . Terminal Hacks . | . . . Fabricator Hacks . | . . . Repair Station Hacks . | . . . Recycling Unit Hacks . | . . . Scanalyzer . | . . . Garrison Access Hacks . | . . . Unauthorized Hacks 6 | . 6 . Terminals 5 | . 5 . Assimilate 1 | . 1 . Botnet 4 | . 4 . Fabricators . | . . . Repair Stations 1 | . 1 . Mechanics 1 | . 1 . Recycling Units . | . . . Scanalyzers . | . . . Garrison Access . | . . . Data Cores Recovered . | . . . Used . | . . . Hacking Detections 3 | . 3 . Full Trace Events . | . . . Feedback Events . | . . . Feedback Blocked . | . . . Robot Schematics Acquired . | . . . Robots Built . | . . . Authchips . | . . . Time . | . . . Total Robot Build Rating . | . . . Part Schematics Acquired . | . . . Parts Built . | . . . Authchips . | . . . Time . | . . . Total Part Build Rating . | . . . Parts Repaired . | . . . Time . | . . . Parts Recycled . | . . . Recycled Matter . | . . . Retrieved Matter . | . . . Retrieved Components . | . . . Parts Scanalyzed . | . . . Part Schematics Acquired . | . . . Parts Damaged . | . . . Bothacking | -11 -10 -10 ------------ Run | Yrd Mat Sub Used RIF Installer . | . . . Robots Hacked . | . . . Non-combat . | . . . Combat . | . . . Robot Hacks Applied . | . . . Relay Couplers Released . | . . . Fabnet Peak Effective % . | . . . Robots Rewired . | . . . Allies Hacked . | . . . Hacks Repelled . | . . . Allies | -11 -10 -10 -------- Run | Yrd Mat Sub Total Allies 1 | . 1 . Largest Group 1 | . 1 1 Highest-Rated Group 10 | . 10 10 Highest-Rated Ally 10 | . 10 10 Total Orders . | . . . Ally Attacks . | . . . Total Damage . | . . . Kills . | . . . Allies Corrupted . | . . . Allies Melted . | . . . Intel | -11 -10 -10 ------- Run | Yrd Mat Sub Active Infowar (turns) . | . . . Robot Analysis Total . | . . . Derelict Logs Recovered 1 | . . 1 Drone Launches . | . . . Drone Recoveries . | . . . Exploration | -11 -10 -10 ------------- Run | Yrd Mat Sub Turns Passed 746 | 49 334 363 Spaces Moved 1046 | 38 448 560 Core 8 | 8 . . Treads . | . . . Legs 186 | 30 156 . Wheels . | . . . Hover . | . . . Flight 852 | . 292 560 Fastest Speed 37 | 50 37 37 Average Speed 51 | 105 66 37 Slowest Speed 120 | 120 120 37 Overloaded Moves . | . . . Propulsion Burnouts . | . . . Robots Hopped 6 | . 5 1 Potential Cave-ins . | . . . Cave-ins Triggered . | . . . Exploration Rate (%) 35 | 4 75 28 Regions Visited 2 Branch Regions 1 Pre-discovered Areas 1 | . . 1 Known Exits Taken 1 | . 1 . Unknown Exits Taken 1 | 1 . . Scrap Searched . | . . . Spaces Dug . | . . . Terrain Destroyed . | . . . Melee . | . . . Projectile . | . . . AOE . | . . . Terrain Rammed . | . . . Walls Destroyed . | . . . Machines Disabled . | . . . Actions | -11 -10 -10 --------- Run | Yrd Mat Sub Total 1218 | 44 471 703 Wait 129 | . 4 125 Move 1032 | 37 437 558 Hop 6 | . 5 1 Pick Up 8 | 2 5 1 Fast Attach 9 | 5 3 1 Attach 2 | . 1 1 Detach . | . . . Swap 5 | . 4 1 Drop 6 | . 5 1 Fire 21 | . 7 14 Melee . | . . . Ram . | . . . Kick . | . . . Crush . | . . . Escape Stasis . | . . . Rewire . | . . . Trap . | . . . Miscellaneous . | . . . Route ------- -11/Scrapyard -10/Materials (discovered 2 exits: *Mat / *Sub) -10/Subcaves (discovered 1 exit: *Mat) History --------- Turn | Location | Event 5 | -11/Scrapyard | Discovered new exit (range 15) 50 | -11/Scrapyard | Entered Materials 342 | -10/Materials | Discovered new exit (range 10) 345 | -10/Materials | Identified exit to Materials 370 | -10/Materials | Build established: Mutant 374 | -10/Materials | Discovered new exit (range 9) 377 | -10/Materials | Identified exit to Subcaves 384 | -10/Materials | Entered Subcaves 384 | -10/Subcaves | Accompanied by 1 ally 385 | -10/Subcaves | Approached by a straggling Scientist 400 | -10/Subcaves | Shifting Twisted Machinery released Sub. Machine Gun 423 | -10/Subcaves | Shifting Twisted Machinery released Spk. Treads 478 | -10/Subcaves | Core integrity fell below 50% 493 | -10/Subcaves | Core integrity fell below 20% 497 | -10/Subcaves | Learned location of Zion (-7) 497 | -10/Subcaves | Met a Zionite searching for "candidates" 516 | -10/Subcaves | Lost 3 parts (1n2w) 520 | -10/Subcaves | Learned Materials emergency access door positions 556 | -10/Subcaves | Discovered new exit (range 11) 559 | -10/Subcaves | Identified exit to Materials 747 | -10/Subcaves | Destroyed by K0-S39(R) with Subdweller Machine Gun Last Messages --------------- Critical hit (Meltdown: +270). Datajack destroyed. N5-7TY(R) destroyed. Lgt. Assault Rifle destroyed. Acquired Hacking Suite. Acquired 37 matter. Subatomizers dissect the Hover Unit. DC-Q0Y(z): "Hey you! It's really dangerous down here, I feel that you could die at any moment. For your health and safety might I suggest a trip to Zion?" World map updated: -7/Zion. Acquired derelict log, extracted data. Data stored: Materials emergency access points. Acquired Sub. Optics. Acquired 10 matter. EXIT=FOUND EXIT=IDENTIFIED: MATERIALS Dropped Ion Engine. Acquired 10 matter. Map ----- +----------------------------------------------------+ | ?????????????????????????????????????????????????? | | ?????????????????????????????????????????????????? | | ?????????????????????????????????????????????????? | | ?????????????????????????????????????????????????? | | ?????????????????????????????????????????????????? | | ?????????????????????????????????????????????????? | | ?????????????????????????????????????????????????? | | ?????????????????????????????????????????????????? | | ?????????????????????????????????????????????????? | | ?????????????????????????????????????????????????? | | ?????????????????????????????????????????????????? | | ?????????????????????????????????????????????????? | | ?????????????????????????????????????????????????? | | ????????????????#????????????????????????????????? | | ???????????????# ????????????????????????????????? | | ???????????????# ???????????????????????????????? | | ?????????????### ?#????????????????????????????? | | ?????????????# # ???????????????????????????? | | ?????????????# #R???????????????????????????? | | ?????????????# R ??????????????????????????? | | ?????????????? ??????????????????????????? | | ???????????????? ?????????????????????????? | | ?????????????????? ?????####???###?????????## | | ????????????????????# ??### ##### ##??????### | | ?????????????????????# ### ## ###???## | | ?????????????????????# @ ##### | | ?????????????????????## | | ??????????????????????### ##R ## # | | ????????????????????????##### ### #### | | ???????????????????????????# ### # ##??## | | ??????????????????????####### #????# | | ?????????????????????## ### #????# | | ?????????????????????# ##??## | | ????????????????????# ## # #### | | ??????????????? ### ## | | ????????????? ### #?# #######? | | ???????????? #?# #?## #??????? | | ????????????? ## ##?########??#####??????? | | ???????????? ## #?####????????????????????????? | | ???????????????# #??????????????????????????????? | | ???????????????###???????????????????????????????? | | ?????????????????????????????????????????????????? | | ?????????????????????????????????????????????????? | | ?????????????????????????????????????????????????? | | ?????????????????????????????????????????????????? | | ?????????????????????????????????????????????????? | | ?????????????????????????????????????????????????? | | ?????????????????????????????????????????????????? | | ?????????????????????????????????????????????????? | | ?????????????????????????????????????????????????? | +----------------------------------------------------+ Best States ------------- Heat Dissipation 25 Energy Generation 10 Energy Capacity 250 Matter Stores 300 Matter Capacity 300 Sight Range 16 Terrain Scan Density 10 Evasion (%) 62 Offensive Hacking 10 Item Schematics ----------------- None Robot Schematics ------------------ None Fabricated ------------ Nothing Repaired ---------- Nothing Alien Tech Used ----------------- None Achievements -------------- None Challenges ------------ None Game ------ Seed FlightCompositeScythe Manual? 0 Play Time 00:15:00 Cumulative 17.5 hours Start 2025.08.25 @ 23:03:13 End 2025.08.25 @ 23:52:43 Sessions 1 Manual Loads 0 Difficulty Rogue Special Mode None Game No. 16 Rogue 16 Adventurer 0 Explorer 0 Win Type - Total 0 Types 0/0/0/0/0/0/0/0/0/0 Lore% 20 Gallery% 25 Achievement% 29 Wizard Run 0 Options --------- Layout 1 ASCII 0 Keyboard 0 Movement Mouse Keybinds 0 Fullscreen 1 Font 32/SmallcapsGlow Map View 50x35 Zoom Use 0% Tactical HUD 0 Map Filters NONE Filters NONE Steam 1 RUN: 47d629c4-a66a-43f0-ae72-204aa814db5a